Cogmind - Beta 10.2 @@@ ROGUE MODE // 2021.10.29 @ 14:08:58 Player: ZEROAFFEX Result: Self-destructed Performance ------------- Evolutions (1) 500 Regions Visited (3) 600 Robots Destroyed (25) 125 Value Destroyed (464) 464 Prototype IDs (0) 0 Alien Tech Used (0) 0 Bonus (0) 0 TOTAL SCORE: 1689 Bonus ------- None Cogmind --------- Core Integrity 227/400 Matter 146/300 Energy 100/100 System Corruption 0% Temperature Cool (6) Movement Core (800) Ox15 Location -9/Materials Parts ------- > --- POWER (1) -------- (None) > --- PROPULSION (2) --- Compact Wheel > --- UTILITY (3) ------ Large Storage Unit High-capacity Storage Unit Improved Targeting Computer > --- WEAPON (3) ------- (None) > --- INVENTORY (18) --- Deuterium Engine Deuterium Engine Light Treads Experimental Sensor Array Melee Analysis Suite Hacking Suite System Shield EMP Blaster Peak State ------------ > --- POWER ------------ Deuterium Engine > --- PROPULSION ------- Light Treads Compact Wheel > --- UTILITY ---------- Large Storage Unit High-capacity Storage Unit Improved Targeting Computer > --- WEAPON ----------- Assault Rifle Rocket Launcher > --- INVENTORY -------- Deuterium Engine Compact Wheel Experimental Sensor Array Hacking Suite System Shield EMP Blaster Rocket Launcher [Rating: 14] Favorites ----------- Power Ion Engine Engine Ion Engine Propulsion Light Treads Treads Light Treads Wheel Compact Wheel Utility Large Storage Unit Storage Large Storage Unit Processor Targeting Computer Weapon Assault Rifle Ballistic Gun Assault Rifle Launcher Rocket Launcher Build | -11 -10 -10 -9 ------- Run | Scr Mat Min Mat Slots Evolved 2 | . . . 2 Power . | . . . . Propulsion . | . . . . Utility 1 | . . . 1 Weapon 1 | . . . 1 Parts Attached 21 | 6 5 6 4 Power 2 | 1 . . 1 Engine 2 | 1 . . 1 Core . | . . . . Reactor . | . . . . Propulsion 6 | 2 1 2 1 Treads 2 | 1 . 1 . Leg . | . . . . Wheel 4 | 1 1 1 1 Hover . | . . . . Flight . | . . . . Utility 6 | 1 3 1 1 Device . | . . . . Storage 4 | 1 2 1 . Processor 2 | . 1 . 1 Hackware . | . . . . Protection . | . . . . Artifact . | . . . . Weapon 7 | 2 1 3 1 Energy Gun . | . . . . Energy Cannon . | . . . . Ballistic Gun 4 | 2 . 2 . Ballistic Cannon . | . . . . Launcher 3 | . 1 1 1 Special Weapon . | . . . . Impact Weapon . | . . . . Slashing Weapon . | . . . . Piercing Weapon . | . . . . Special Melee Weapon . | . . . . Unidentified Prototypes . | . . . . Parts Lost 10 | . . 4 6 Power 1 | . . . 1 Propulsion 3 | . . 1 2 Utility 1 | . . 1 . Weapon 5 | . . 2 3 Highest Loss Streak 4 | . . 2 4 Average Slot Usage (%) 94 | . 98 96 80 Engine 13 | . 14 14 10 Treads 13 | . 14 14 10 Wheel 13 | . 14 13 10 Storage 23 | . 14 26 22 Processor 4 | . 12 1 8 Ballistic Gun 16 | . 26 14 7 Launcher 8 | . 1 10 11 Naked Turns . | . . . . Heaviest Build 63 | 13 43 59 63 Greatest Support 20 | 20 16 20 20 Greatest Overweight (x) 17 | 4 4 4 17 Average Overweight (x) 1 | . . 2 3 Largest Inventory Capacity 18 | 6 12 18 18 Average Capacity 14 | 5 7 17 18 Most Carried 10 | 4 10 10 10 Average Carried 6 | 1 6 6 7 Final Capacity 18 | 6 12 18 18 Final Carried 10 | 4 10 6 8 Class Distribution -------------------- 100% | Mutant Dominant Class ---------------- Mutant | -10/Materials Mutant | -10/Mines Mutant | -9/Materials Resources | -11 -10 -10 -9 ----------- Run | Scr Mat Min Mat Matter Collected 756 | 183 198 264 111 Remotely . | . . . . Salvage Created 550 | . 198 74 278 Parts 51 | . 13 4 34 Haulers Intercepted . | . . . . Recyclers Shooed 2 | . 2 . . Parts Field Recycled . | . . . . Retrieved Matter . | . . . . Parts Self-Destructed . | . . . . Prevented . | . . . . Kills | -11 -10 -10 -9 ------- Run | Scr Mat Min Mat Combat Hostiles Destroyed 19 | . 4 7 8 Guns 10 | . 4 6 . AOE 9 | . . 1 8 Classes Destroyed 9 | . 3 2 4 Worker 4 | . 1 . 3 Builder 3 | . . . 3 Tunneler 1 | . . . 1 Recycler 2 | . . . 2 Operator 1 | . 1 . . Swarmer 5 | . . 2 3 Grunt 8 | . 4 . 4 Sentry 1 | . . . 1 Assembled 5 | . . 5 . Best Kill Streak 10 | . 3 4 10 Combat Bots Only 4 | . 2 4 4 Max Kills in Single Turn 4 | . 1 1 4 Gunslinging . | . . . . Exploded 2 | . . 1 2 Melee . | . . . . Uniques/NPCs Destroyed . | . . . . Combat | -11 -10 -10 -9 -------- Run | Scr Mat Min Mat Damage Taken 1429 | . 309 353 767 Core 310 | . 78 59 173 Absorbed by Shields . | . . . . Core Remaining (%) 72 | 100 . 45 . Volleys Fired 63 | 4 26 21 12 Largest 2 | 2 2 2 2 Hottest 53 | 40 40 53 53 Shots Fired 113 | 8 51 36 18 Gun 95 | 8 50 31 6 Cannon . | . . . . Launcher 18 | . 1 5 12 Special . | . . . . Kinetic 95 | 8 50 31 6 Thermal . | . . . . Explosive 18 | . 1 5 12 Electromagnetic . | . . . . Robot Hit Streak 10 | 2 10 4 6 Robot Miss Streak 6 | 4 5 6 3 Penetration Max . | . . . . Secondary Targets . | . . . . Shots Hit Robots 69 | 2 38 19 10 Core Hits 56 | 1 12 12 31 Critical Hits 1 | . 1 . . Critical Kills . | . . . . Critical Parts Destroyed 1 | . 1 . . Melee Attacks . | . . . . Impact . | . . . . Slashing . | . . . . Piercing . | . . . . Sneak Attacks . | . . . . Combat Hostiles . | . . . . Follow-up Attacks . | . . . . Damage Inflicted 2031 | 37 544 377 1073 Guns 845 | 37 535 225 48 Cannons . | . . . . Explosions 1186 | . 9 152 1025 Melee . | . . . . Ramming . | . . . . Kinetic 845 | 37 535 225 48 Thermal . | . . . . Explosive 1186 | . 9 152 1025 Electromagnetic . | . . . . Impact . | . . . . Slashing . | . . . . Piercing . | . . . . Highest Corruption 10 | . . 10 . Average Corruption 9 | . . 9 . Corruption Purged . | . . . . Effects 44 | . . 44 . Message Errors 10 | . . 10 . Matter Fused 9 | . . 9 . Heat Flow Errors 4 | . . 4 . Energy Discharges 6 | . . 6 . Parts Rejected 1 | . . 1 . Data Loss (minor) 5 | . . 5 . Misfires 1 | . . 1 . Alerts 1 | . . 1 . Misdirections 4 | . . 4 . Targeting Errors 2 | . . 2 . Weapon Failures 1 | . . 1 . Overload Shots . | . . . . Overflow Damage 55 | . . 14 41 Projectiles . | . . . . Explosions 55 | . . 14 41 Melee . | . . . . Knockbacks . | . . . . Impact . | . . . . Kinetic . | . . . . Secondary . | . . . . Self-Inflicted Damage 282 | . . 52 230 Shots 11 | . . 3 8 Rammed . | . . . . Targets Rammed . | . . . . Kicked . | . . . . Crushed . | . . . . Highest Temperature 214 | 6 6 214 7 Average Temperature 67 | 6 2 93 2 Received Heat Transfer 383 | . 168 20 195 Siege Activations . | . . . . Robots Corrupted . | . . . . Combat Hostiles . | . . . . Parts Fried . | . . . . Impact Corruptions . | . . . . Robots Melted . | . . . . Combat Hostiles . | . . . . Parts Melted . | . . . . Heat Transferred . | . . . . Parts Sabotaged . | . . . . Parts Stolen . | . . . . Parts Stripped . | . . . . Power Chain Reactions . | . . . . Missiles Intercepted . | . . . . Alert | -11 -10 -10 -9 ------- Run | Scr Mat Min Mat Peak Influence 245 | . 75 76 245 Initial 21 | . . 21 . Average 21 | . 31 8 65 Maximum Alert Level 1 | . . . 1 Low Security (%) 98 | 100 100 100 89 Level 1 1 | . . . 10 Level 2 . | . . . . Level 3 . | . . . . Level 4 . | . . . . Level 5 . | . . . . High Security . | . . . . Max Security . | . . . . Squads Dispatched 2 | . 1 . 1 Investigation . | . . . . Extermination . | . . . . Reinforcement 2 | . 1 . 1 Assault . | . . . . Garrison . | . . . . Intercept . | . . . . Construction Impeded . | . . . . Haulers Reinforced . | . . . . Stealth | -11 -10 -10 -9 --------- Run | Scr Mat Min Mat Distress Signals . | . . . . Communications Jammed . | . . . . Distress Signals . | . . . . Times Spotted 30 | . 8 9 13 Peak Tracking Total 5 | . 2 2 5 Tactical Retreats . | . . . . Traps | -11 -10 -10 -9 ------- Run | Scr Mat Min Mat Traps Triggered . | . . . . Indirectly . | . . . . Trap Hack Attempts . | . . . . Triggered . | . . . . Disarmed . | . . . . Reprogrammed . | . . . . Reused . | . . . . Traps Extracted . | . . . . Installed . | . . . . Triggered . | . . . . Machines | -11 -10 -10 -9 ---------- Run | Scr Mat Min Mat Machines Disabled 3 | . . 1 2 Max in Single Turn 2 | . . 1 2 Machines Sabotaged . | . . . . Garrisons Compromised . | . . . . Overloaded Fab Kills . | . . . . Fab Network Shutdowns . | . . . . Hacking | -11 -10 -10 -9 --------- Run | Scr Mat Min Mat Machines Accessed 2 | . 2 . . Terminals 2 | . 2 . . Fabricators . | . . . . Repair Stations . | . . . . Recycling Units . | . . . . Scanalyzers . | . . . . Garrison Access . | . . . . Total Hacks 5 | . 5 . . Successful 4 | . 4 . . Failed 1 | . 1 . . Catastrophic . | . . . . Database Lockouts . | . . . . Manual 4 | . 4 . . Terminals 5 | . 5 . . Fabricators . | . . . . Repair Stations . | . . . . Recycling Units . | . . . . Scanalyzers . | . . . . Garrison Access . | . . . . Terminal Hacks 2 | . 2 . . Unreport Threat 1 | . 1 . . Zone Layout 1 | . 1 . . Fabricator Hacks . | . . . . Repair Station Hacks . | . . . . Recycling Unit Hacks . | . . . . Scanalyzer . | . . . . Garrison Access Hacks . | . . . . Unauthorized Hacks 2 | . 2 . . Terminals 2 | . 2 . . Track 2 | . 2 . . Fabricators . | . . . . Repair Stations . | . . . . Recycling Units . | . . . . Scanalyzers . | . . . . Garrison Access . | . . . . Data Cores Recovered 1 | . 1 . . Used . | . . . . Hacking Detections 2 | . 2 . . Full Trace Events . | . . . . Feedback Events . | . . . . Feedback Blocked . | . . . . Robot Schematics Acquired . | . . . . Robots Built . | . . . . Matter . | . . . . Time . | . . . . Total Robot Build Rating . | . . . . Part Schematics Acquired . | . . . . Parts Built . | . . . . Matter . | . . . . Time . | . . . . Total Part Build Rating . | . . . . Parts Repaired . | . . . . Time . | . . . . Parts Recycled . | . . . . Recycled Matter . | . . . . Retrieved Matter . | . . . . Retrieved Components . | . . . . Parts Scanalyzed . | . . . . Part Schematics Acquired . | . . . . Parts Damaged . | . . . . Bothacking | -11 -10 -10 -9 ------------ Run | Scr Mat Min Mat Used RIF Installer . | . . . . Robots Hacked . | . . . . Non-combat . | . . . . Combat . | . . . . Robot Hacks Applied . | . . . . Relay Couplers Released . | . . . . Robots Rewired . | . . . . Allies Hacked . | . . . . Hacks Repelled . | . . . . Allies | -11 -10 -10 -9 -------- Run | Scr Mat Min Mat Total Allies . | . . . . Largest Group . | . . . . Highest-Rated Group . | . . . . Highest-Rated Ally . | . . . . Total Orders . | . . . . Ally Attacks . | . . . . Total Damage . | . . . . Kills . | . . . . Allies Corrupted . | . . . . Allies Melted . | . . . . Intel | -11 -10 -10 -9 ------- Run | Scr Mat Min Mat Robot Analysis Total . | . . . . Derelict Logs Recovered 1 | . . 1 . Drone Launches . | . . . . Drone Recoveries . | . . . . Exploration | -11 -10 -10 -9 ------------- Run | Scr Mat Min Mat Turns Passed 1973 | 108 396 1159 310 Spaces Moved 1063 | 55 271 573 164 Core 17 | 16 . . 1 Treads 539 | 8 . 505 26 Legs . | . . . . Wheels 507 | 31 271 68 137 Hover . | . . . . Flight . | . . . . Fastest Speed 50 | 50 100 120 130 Average Speed 158 | 141 101 190 148 Slowest Speed 900 | 250 120 200 900 Overloaded Moves . | . . . . Propulsion Burnouts . | . . . . Robots Hopped . | . . . . Cave-ins Triggered . | . . . . Exploration Rate (%) 40 | 5 40 98 20 Regions Visited 3 Branch Regions 1 Pre-discovered Areas . | . . . . Known Exits Taken . | . . . . Unknown Exits Taken 3 | 1 1 1 . Scrap Searched 2 | . . 2 . Spaces Dug . | . . . . Terrain Destroyed 117 | . 12 49 56 Melee . | . . . . Projectile . | . . . . AOE 117 | . 12 49 56 Terrain Rammed . | . . . . Walls Destroyed . | . . . . Machines Disabled . | . . . . Actions | -11 -10 -10 -9 --------- Run | Scr Mat Min Mat Total 1231 | 74 340 604 213 Wait 65 | 6 30 4 25 Move 1060 | 54 270 572 164 Hop . | . . . . Pick Up 17 | 4 6 1 6 Fast Attach 7 | 6 1 . . Attach 8 | . . 5 3 Detach . | . . . . Swap 6 | . 4 1 1 Drop 5 | . 3 . 2 Fire 63 | 4 26 21 12 Melee . | . . . . Ram . | . . . . Kick . | . . . . Crush . | . . . . Escape Stasis . | . . . . Rewire . | . . . . Trap . | . . . . Miscellaneous . | . . . . Route ------- -11/Scrapyard -10/Materials (discovered 2 exits: [*Mat] / [*Min]) -10/Mines (discovered 2 exits: [*Mat x2]) -9/Materials (discovered 1 exit: Sto) History --------- Turn | Location | Event 19 | -11/Scrapyard | Discovered new exit (range 16) 109 | -11/Scrapyard | Entered Materials 179 | -10/Materials | Discovered new exit (range 15) 316 | -10/Materials | Build established: Mutant 325 | -10/Materials | Discovered new exit (range 4) 505 | -10/Materials | Entered Mines 520 | -10/Mines | Assembled infested the area 581 | -10/Mines | Met a Derelict bent on vengeance 631 | -10/Mines | Core integrity fell below 50% 656 | -10/Mines | System corruption reached 10% 1051 | -10/Mines | Discovered new exit (range 9) 1093 | -10/Mines | Found a damaged Exp. Sensor Array with a note attached 1097 | -10/Mines | Found Prototype Device 1190 | -10/Mines | Discovered new exit (range 8) 1664 | -10/Mines | Entered Materials 1664 | -9/Materials | Evolved 2 slots: Utility x1, Weapon x1 1665 | -9/Materials | Identified exit to Storage 1974 | -9/Materials | Self-destructed Last Messages --------------- 01941_ K-01 Serf collects debris. 01942_ The unstable cave ceiling collapses. 01942_ Lgt. Ion Engine crushed. 01945_ K-01 Serf collects debris. 01947_ Acquired 5 matter. 01949_ K-01 Serf cleans the Material Compactor. 01952_ Deuterium Engine destroyed. 01952_ K-01 Serf collects debris. 01955_ Acquired 1 matter. 01955_ K-01 Serf cleans the Material Compactor. 01956_ O-16 Technician: "IFF HANDSHAKE FAILED. SECURING TERMINAL." 01959_ Acquired 2 matter. 01960_ ALERT: Hostiles spotted, dispatching reinforcements to Terminal M006. 01961_ The unstable cave ceiling collapses. 01961_ K-01 Serf collects debris. 01964_ Lgt. Treads destroyed. 01965_ K-01 Serf collects debris. 01971_ Rocket Launcher destroyed. 01971_ K-01 Serf collects debris. Map ----- +----------------------------------------------------+ | ????????????????????????????????????????????? | | ????????????????????????????????????????????? | | ????????????????????????????????????????????? | | ????????????????????????????????????????????? | | ????????????????????????????????????????????? | | ??????????????????>?????????????????????????? | | ????????????????????????????????????????????? | | ????????????????????????????????????????????? | | ???????????????????????????######???????????? | | ??????????????????????# ??? ???????????? | | ??????????????????????# ?? ???????????? | | ??????????????????????# ? ???????????? | | ??????????????????????# ?? #???????????? | | ??????????????????????# ?? #???????????? | | ??????????????????????# """ #???????????? | | ??????????????????????# """"" #???????????? | | ??????????????????????# """"" #?#+######### | | ?????????????###?###### """"" #?# # | | ????????????? ## """ #?# "" """ # | | ?????????# ? """ """ # ### "" # | | ?????????? """ """ # # " # | | ?????????? """ """ + + | | ?????????? # k # ! | | ?????????# # # ### * | | ?????????? [ ## ##?## % [ = | | ??????????????######@ #####???# # | | ???????????????????# l =* #???????## # # % | | ?????????????????+ #????????### = | | ?????????????????# #?????????## | | ?????????????????+ #?????????# | | ?????????????????#^ #?????????####### | | ?????????????????# g # ??????????# | | ?????????????????# ""????????# """ | | ?????????????????# g ] ""????????# "R" | | ?????????????????+ ""????????# " " | | ?????????????????# # ????????# | | ?????????????????# + ????????# | | ?????????????????# #######???????# | | ?????????????????# #?????????????# [ | | ?????????????????# #?????????????##### | | ?????????????????# #????????????????# | | ?????????????????? ?????????????????# | | ???????????????????????????????????????????# | | ???????????????????????????????????????????# | | ??????????????????????????????????????????## | | ??????????????????????????????????????????# | | ???????????????????????????????????######## | | ??????????????????????????????????# | | ??????????????????????????????????# # | | ??????????????????????????????????# # | +----------------------------------------------------+ Best States ------------- Heat Dissipation 28 Energy Generation 14 Energy Capacity 275 Matter Stores 227 Matter Capacity 300 Sight Range 16 Terrain Scan Density 10 Evasion (%) 40 Targeting Accuracy 6 Recoil Reduction 1 Item Schematics ----------------- None Robot Schematics ------------------ None Fabricated ------------ Nothing Alien Tech Used ----------------- None Achievements -------------- None Challenges ------------ None Game ------ Seed MiniProcessingAxe Manual? 0 Play Time 00:16:35 Cumulative 46.2 hours Start 2021.10.29 @ 13:49:57 End 2021.10.29 @ 14:08:58 Sessions 1 Manual Loads 0 Difficulty Rogue Special Mode None Game No. 40 Rogue 38 Adventurer 2 Explorer 0 Win Type - Total 0 Types 0/0/0/0/0/0/0/0/0 Lore% 28 Gallery% 29 Achievement% 28 Wizard Run 0 Options --------- ASCII 0 Keyboard 0 Movement Mouse Keybinds 1 Fullscreen 1 Font 18/TerminusBold Map View 76x50 Tactical HUD 1 Map Filters NONE Filters NONE Steam 1 RUN: a3762c13-1944-4ed3-9205-4b2063f5ab87